bitfinex-derivatives/quotes_SOLF0:USTF0_20250516
["timestamp","ask_amount","ask_price","bid_price","bid_amount"]
[1747370606634,61.0,171.45,171.34,59.7]
[1747370607034,5.8322,171.42,171.34,59.7]
[1747370607239,60.8,171.41,171.34,59.7]
[1747370607536,5.8321,171.43,171.38,5.8334]
[1747370607733,60.78,171.42,171.38,5.8334]
[1747370608239,66.6124,171.42,171.37,5.8338]
[1747370608534,121.78,171.42,171.34,59.7]
[1747370608841,5.8329,171.4,171.31,63.0038]
[1747370609338,5.8329,171.4,171.35,5.8343]
[1747370610138,5.8329,171.4,171.31,63.0038]
[1747370610139,6.87597816,171.41,171.31,2.0038]
[1747370610638,5.8338,171.38,171.33,5.835]
[1747370610838,121.94,171.37,171.33,5.835]
[1747370611441,127.774,171.37,171.32,5.8355]
[1747370612040,121.94,171.37,171.31,2.0038]
[1747370613844,121.94,171.37,171.33,5.8349]
[1747370614145,121.94,171.37,171.31,2.0038]
[1747370614743,127.7741,171.37,171.31,2.0038]
[1747370614946,121.94,171.37,171.31,2.0038]
[1747370615544,121.94,171.37,171.33,5.835]
[1747370616436,6.87597816,171.41,171.31,2.0038]
[1747370616437,61.0,171.41,171.31,2.0038]
[1747370616638,61.0,171.41,171.33,6.87597816]
[1747370616952,121.78,171.41,171.38,5.8333]
[1747370621252,121.78,171.41,171.4,5.8328]
[1747370621546,60.64,171.41,171.32,67.87597816]
[1747370621743,5.8312,171.45,171.4,5.8325]
[1747370621948,61.0,171.45,171.35,6.87597816]
[1747370622140,60.62,171.44,171.36,2.0094]
[1747370622541,60.62,171.44,171.4,5.8326]
[1747370624144,66.4515,171.44,171.4,5.8326]
[1747370624344,66.4515,171.44,171.39,5.8331]
[1747370624548,66.4515,171.44,171.37,1.9638]
[1747370624746,60.62,171.44,171.4,5.8328]
[1747370625547,60.56,171.43,171.4,5.8328]
[1747370628152,60.56,171.43,171.39,5.8331]
[1747370628854,60.56,171.43,171.4,5.8328]
[1747370632260,60.56,171.43,171.36,61.0]
[1747370632445,61.0,171.45,171.37,1.8286]
[1747370632756,60.36,171.44,171.37,3.7505]
[1747370632953,17.45,171.37,170.92,12.90405483]
[1747370633150,17.45,171.41,171.09,6.89877272]
[1747370633354,6.89877272,171.36,171.12,6.89877272]
[1747370633552,6.89877272,171.34,171.15,6.89877272]
[1747370633752,6.89877272,171.31,171.16,133.76]
[1747370634056,6.89877272,171.28,171.16,134.83245784]
[1747370634252,6.89877272,171.25,171.17,66.78]
[1747370634458,67.14,171.31,171.17,66.78]
[1747370634751,6.89877272,171.3,171.17,66.78]
[1747370634952,6.89877272,171.3,171.18,67.2]
[1747370635151,6.89877272,171.3,171.19,5.8399]
[1747370635552,73.67877272,171.3,171.2,66.78]
[1747370635952,5.8376,171.27,171.2,66.78]
[1747370636153,73.67877272,171.3,171.2,66.78]
[1747370637457,5.8383,171.25,171.2,66.78]
[1747370638357,66.96,171.29,171.2,66.78]
[1747370639362,5.8372,171.28,171.21,5.8393]
[1747370639562,5.8372,171.28,171.2,66.78]
[1747370640365,66.92,171.3,171.2,66.78]
[1747370640560,66.92,171.3,171.21,6.90480847]
[1747370641562,72.7565,171.3,171.23,5.8383]
[1747370642664,66.82,171.33,171.21,6.90480847]
[1747370642863,66.72,171.34,171.25,6.90480847]
[1747370643065,66.72,171.34,171.26,72.4954]
[1747370643361,72.5549,171.34,171.27,5.837]
[1747370643658,66.72,171.34,171.26,72.4954]
[1747370643866,66.68,171.37,171.26,72.4954]
[1747370644066,5.8345,171.36,171.29,5.8362]
[1747370644263,66.68,171.37,171.27,66.66]
[1747370644459,66.68,171.37,171.28,6.90480847]
[1747370644966,72.5142,171.37,171.3,5.8362]
[1747370645165,72.5142,171.37,171.31,66.82]
[1747370646468,72.5142,171.37,171.31,72.6558]
[1747370647967,5.8343,171.36,171.31,66.82]
[1747370648469,66.68,171.37,171.31,66.82]
[1747370648960,72.5139,171.37,171.31,66.82]
[1747370649167,72.5139,171.37,171.31,72.6558]
[1747370649767,72.5139,171.37,171.31,66.82]
[1747370651272,5.8343,171.36,171.31,66.82]
[1747370651974,5.8345,171.35,171.31,66.82]
[1747370652775,5.8342,171.36,171.31,66.82]
[1747370654580,66.68,171.37,171.31,72.6558]
[1747370654780,65.9,171.45,171.33,6.90480847]
[1747370655078,65.9,171.45,171.37,5.8336]
[1747370655279,5.8321,171.43,171.38,66.82]
[1747370656879,5.8321,171.43,171.38,72.6534]
[1747370657381,303.48773412,171.47,171.38,66.82]
[1747370658578,5.8308,171.46,171.4,5.8328]
[1747370659879,5.8313,171.45,171.38,66.82]
[1747370660280,5.8318,171.44,171.38,72.6535]
[1747370661497,5.8319,171.43,171.38,66.82]
[1747370662193,5.8319,171.43,171.38,72.6534]
[1747370662892,5.8315,171.44,171.38,72.6534]
[1747370663093,303.22773412,171.47,171.38,66.82]
[1747370663492,5.8311,171.46,171.38,66.82]
[1747370663686,5.8311,171.46,171.4,5.8326]
[1747370663882,303.22773412,171.47,171.4,5.8326]
[1747370664485,310.13254259,171.47,171.36,65.3]
[1747370664993,5.8324,171.42,171.36,71.1339]
[1747370665295,5.8324,171.42,171.36,65.3]
[1747370666595,5.8324,171.42,171.37,5.8339]
[1747370667590,71.96480847,171.41,171.32,65.3]
[1747370667990,5.8343,171.36,171.32,65.3]
[1747370669998,5.8339,171.37,171.32,71.1353]
[1747370670295,5.8339,171.37,171.32,65.3]
[1747370670693,5.8336,171.38,171.33,5.8352]
[1747370671099,71.96480847,171.41,171.33,5.8352]
[1747370671997,5.8338,171.38,171.33,5.8352]
[1747370672897,5.8338,171.38,171.34,5.8349]
[1747370673489,5.8339,171.37,171.32,65.3]
[1747370673690,5.8339,171.37,171.32,71.1355]
[1747370675000,65.06,171.41,171.32,65.3]
[1747370675801,5.8336,171.38,171.34,5.8346]
[1747370677200,5.8336,171.38,171.33,5.8352]
[1747370677401,5.8339,171.37,171.33,5.8352]
[1747370677694,65.06,171.41,171.33,5.8352]
[1747370677902,5.8335,171.38,171.32,65.3]
[1747370678402,5.8335,171.38,171.33,5.8351]
[1747370681103,65.3,171.43,171.34,5.8349]
[1747370681496,64.28,171.42,171.34,5.8349]
[1747370682500,64.28,171.42,171.32,129.58]
[1747370683102,5.8341,171.37,171.33,5.8351]
[1747370683302,64.28,171.42,171.33,5.8351]
[1747370683602,5.834,171.37,171.33,5.8351]
[1747370685704,5.8336,171.38,171.34,5.8348]
[1747370687209,5.8339,171.37,171.33,5.8351]
[1747370689007,5.8343,171.36,171.32,135.4155]
[1747370690108,5.8339,171.37,171.32,135.4155]
[1747370691107,5.8339,171.37,171.33,5.8352]
[1747370691611,5.8336,171.38,171.33,5.8352]
[1747370691912,64.28,171.42,171.32,136.48480847]
[1747370692312,65.3,171.43,171.32,136.48480847]
[1747370692512,5.8329,171.4,171.35,5.8343]
[1747370692808,5.8329,171.4,171.32,136.48480847]
[1747370693113,5.8329,171.4,171.35,5.8345]
[1747370695015,5.8329,171.4,171.32,136.48480847]
[1747370695514,5.8329,171.4,171.36,5.8342]
[1747370698317,5.8326,171.41,171.37,5.8338]
[1747370699422,63.62,171.42,171.32,136.48480847]
[1747370699616,63.62,171.42,171.32,129.58]
[1747370700019,5.8332,171.39,171.35,5.8343]
[1747370700221,63.62,171.42,171.32,129.58]
[1747370700719,65.3,171.43,171.32,129.58]
[1747370700917,63.16,171.42,171.32,129.58]
[1747370701720,5.8329,171.4,171.35,5.8343]
[1747370703121,5.8333,171.39,171.35,5.8343]
[1747370703422,63.16,171.42,171.35,5.8343]
[1747370703619,5.8335,171.38,171.35,5.8343]
[1747370704015,63.02,171.38,171.32,65.3]
[1747370704211,69.92480847,171.38,171.29,3.8221]
[1747370704423,69.92480847,171.38,171.28,63.56]
[1747370704821,69.92480847,171.38,171.29,5.8365]
[1747370705121,69.92480847,171.38,171.28,63.56]
[1747370705422,5.8348,171.35,171.3,5.8362]
[1747370705617,63.02,171.34,171.3,5.8362]
[1747370706018,63.02,171.34,171.31,5.8359]
[1747370706620,63.02,171.34,171.32,5.8356]
[1747370707621,63.02,171.34,171.33,5.8352]
[1747370707824,70.48480847,171.41,171.28,63.56]
[1747370708025,62.9,171.4,171.28,63.56]
[1747370708224,5.8336,171.38,171.28,63.56]
[1747370708824,5.8332,171.39,171.3,6.90480847]
[1747370709018,62.86,171.38,171.31,3.9223]
[1747370709223,62.86,171.38,171.32,63.58]
[1747370709422,62.86,171.38,171.35,5.8345]
[1747370709922,62.86,171.38,171.32,63.58]
[1747370711630,62.86,171.38,171.36,5.8339]
[1747370712225,62.86,171.38,171.32,63.58]
[1747370713428,62.86,171.38,171.36,5.834]
[1747370714123,5.8326,171.41,171.36,5.834]
[1747370714933,63.58,171.45,171.36,63.58]
[1747370715120,62.58,171.44,171.36,63.58]
[1747370715727,63.58,171.45,171.36,70.48480847]
[1747370715930,126.12,171.45,171.37,3.8729]
[1747370716231,62.54,171.45,171.41,5.8325]
[1747370716527,6.90480847,171.52,171.41,63.58]
[1747370716728,62.52,171.51,171.41,63.58]
[1747370716928,68.3495,171.5,171.41,63.58]
[1747370717934,68.3495,171.5,171.44,5.8312]
[1747370718133,68.3495,171.5,171.41,63.58]
[1747370718324,62.44,171.5,171.39,6.90480847]
[1747370718529,62.44,171.5,171.44,5.8312]
[1747370718834,62.44,171.5,171.45,63.56]
[1747370719641,5.8291,171.52,171.47,5.8303]
[1747370720232,5.8291,171.52,171.46,1.926]
[1747370720425,5.8291,171.52,171.46,7.7567]
[1747370720628,5.8291,171.51,171.46,7.7567]
[1747370721128,5.8291,171.51,171.47,5.8304]
[1747370721333,5.8288,171.52,171.47,5.8304]
[1747370725830,504.18,171.58,171.46,3.822]
[1747370726022,62.1,171.57,171.46,3.822]
[1747370726632,5.8274,171.56,171.46,3.822]
[1747370726826,62.1,171.57,171.46,3.822]
[1747370727232,5.8278,171.55,171.49,5.8295]
[1747370727533,5.8278,171.55,171.49,67.9295]
[1747370728030,5.8281,171.54,171.49,67.9295]
[1747370728635,62.06,171.56,171.5,5.8293]
[1747370728935,5.828,171.55,171.5,5.8293]
[1747370729137,62.06,171.56,171.49,62.1]
[1747370729533,5.8284,171.54,171.49,62.1]
[1747370729835,5.8284,171.54,171.49,67.9295]
[1747370730028,5.8285,171.53,171.49,67.9295]
[1747370730228,62.06,171.56,171.49,62.1]
[1747370730431,6.90480847,171.54,171.46,3.822]
[1747370730629,69.00480847,171.54,171.46,3.822]
[1747370731935,5.83,171.49,171.46,3.822]
[1747370734240,67.8498,171.5,171.46,9.6527]
[1747370734533,62.02,171.5,171.46,9.6527]
[1747370734936,61.82,171.52,171.46,3.822]
[1747370735635,61.82,171.52,171.48,5.8299]
[1747370736638,67.6488,171.52,171.48,5.8299]
[1747370737038,67.6488,171.52,171.47,5.8304]
[1747370737733,5.8293,171.51,171.47,5.8304]
[1747370738141,61.82,171.52,171.46,3.822]
[1747370738438,5.8295,171.5,171.45,62.1]
[1747370739236,5.8295,171.5,171.45,67.9309]
[1747370739438,61.82,171.52,171.45,62.1]
[1747370740237,5.8301,171.49,171.45,62.1]
[1747370741437,5.8301,171.49,171.45,67.931]
[1747370741639,61.82,171.52,171.45,62.1]
[1747370742236,61.82,171.52,171.42,62.1]
[1747370743038,5.8304,171.48,171.44,5.8314]
[1747370747038,61.82,171.52,171.42,62.1]
[1747370747639,5.8295,171.5,171.46,5.8305]
[1747370747835,211.26537984,171.72,171.44,6.90480847]
[1747370748036,123.58,171.58,171.44,6.90480847]
[1747370748232,5.8283,171.54,171.44,6.90480847]
[1747370748437,61.48,171.53,171.44,6.90480847]
[1747370748930,61.48,171.54,171.5,5.8294]
[1747370749640,62.1,171.58,171.47,62.1]
[1747370749832,61.44,171.57,171.48,3.9246]
[1747370750440,67.2275,171.56,171.48,3.9246]
[1747370750640,299.69783027,171.59,171.48,3.9246]
[1747370750846,61.42,171.58,171.48,3.9246]
[1747370751444,67.2468,171.58,171.53,5.8282]
[1747370751645,61.42,171.58,171.48,3.9246]
[1747370752146,61.36,171.58,171.48,3.9246]
[1747370753044,237.59783027,171.59,171.48,3.9246]
[1747370753250,298.91783027,171.59,171.48,3.9246]
[1747370753746,304.74423027,171.59,171.55,5.8277]
[1747370754141,304.74423027,171.59,171.52,62.08]
[1747370754345,243.42423027,171.59,171.52,62.08]
[1747370754647,304.68423027,171.59,171.52,62.08]
[1747370754840,304.68423027,171.59,171.54,5.8278]
[1747370755039,298.85783027,171.59,171.52,62.08]
[1747370755349,298.85783027,171.59,171.55,5.8276]
[1747370755647,298.85783027,171.59,171.52,62.08]
[1747370756744,304.68443027,171.59,171.54,5.8278]
[1747370758349,5.8269,171.58,171.53,5.8283]
[1747370758649,5.8269,171.58,171.52,62.08]
[1747370759250,5.8269,171.58,171.54,5.8281]
[1747370760253,304.68433027,171.59,171.55,5.8277]
[1747370760552,298.85783027,171.59,171.52,62.08]
[1747370760753,298.85783027,171.59,171.55,5.8275]
[1747370762350,304.68433027,171.59,171.55,5.8275]
[1747370763855,304.68433027,171.59,171.56,5.8274]
[1747370765654,298.85783027,171.59,171.56,5.8274]
[1747370765856,237.59783027,171.59,171.56,5.8274]
[1747370766057,237.59783027,171.59,171.52,62.08]
[1747370766462,237.59783027,171.59,171.57,5.8267]
[1747370766755,237.59783027,171.59,171.52,62.08]
[1747370767656,237.59783027,171.59,171.56,5.8271]
[1747370769865,66.526,171.61,171.57,5.827]
[1747370770166,66.526,171.61,171.52,62.08]
[1747370770667,66.526,171.61,171.56,5.8273]
[1747370773168,60.7,171.61,171.52,62.08]
[1747370773868,5.8267,171.59,171.56,5.8274]
[1747370774065,60.7,171.61,171.56,5.8274]
[1747370774770,5.8264,171.59,171.55,5.8276]
[1747370776073,5.8261,171.6,171.56,5.8274]
[1747370777373,5.8264,171.59,171.56,5.8274]
[1747370777673,5.8264,171.59,171.55,5.8277]
[1747370779171,60.7,171.61,171.53,5.8281]
[1747370780067,60.7,171.61,171.52,62.08]
[1747370780473,61.2,171.6,171.52,62.08]
[1747370780969,61.2,171.6,171.49,61.2]
[1747370781174,6.90480847,171.56,171.45,61.2]
[1747370781478,5.829,171.52,171.47,5.8304]
[1747370781666,60.56,171.55,171.47,5.8304]
[1747370783077,60.56,171.55,171.45,61.2]
[1747370783975,5.8287,171.53,171.49,5.8297]
[1747370784577,5.8288,171.52,171.48,5.8301]
[1747370785775,60.56,171.55,171.45,61.2]
[1747370786175,5.8281,171.54,171.45,61.2]
[1747370786775,5.8281,171.54,171.49,5.8295]
[1747370787178,5.8281,171.54,171.45,61.2]
[1747370787676,237.57243007,171.6,171.46,134.75580513]
[1747370787873,60.64,171.58,171.46,134.75580513]
[1747370788274,5.8278,171.55,171.51,5.8288]
[1747370788470,66.8278,171.55,171.51,5.8288]
[1747370789076,66.7878,171.55,171.51,5.8288]
[1747370789779,60.96,171.55,171.52,5.8287]
[1747370790278,5.8275,171.56,171.52,5.8287]
[1747370790479,60.92,171.55,171.52,5.8287]
[1747370790678,60.92,171.55,171.46,134.75580513]
[1747370791179,5.8282,171.54,171.46,134.75580513]
[1747370791579,60.92,171.55,171.46,134.75580513]
[1747370792379,5.8285,171.53,171.5,5.8294]
[1747370793487,5.8281,171.54,171.5,5.8294]
[1747370794076,5.8281,171.54,171.46,134.75580513]
[1747370794286,66.7478,171.55,171.51,5.8291]
[1747370794477,60.92,171.55,171.46,134.75580513]
[1747370794777,60.64,171.58,171.53,5.8284]
[1747370794985,60.74,171.57,171.53,5.8284]
[1747370796582,5.8275,171.56,171.52,5.8287]
[1747370796783,60.74,171.57,171.52,5.8287]
[1747370797083,60.72,171.56,171.52,5.8287]
[1747370797382,5.8278,171.55,171.51,5.829]
[1747370798685,5.8281,171.54,171.51,43.869]
[1747370799288,5.8278,171.55,171.51,43.869]
[1747370800886,5.8281,171.54,171.51,43.869]
[1747370801183,5.8281,171.54,171.51,38.04]
[1747370802589,5.8281,171.54,171.51,43.869]
[1747370802787,5.8288,171.52,171.51,38.04]
[1747370802987,66.3088,171.52,171.51,38.04]
[1747370805990,60.48,171.52,171.51,38.04]
[1747370809285,66.4682,171.54,171.51,38.04]
[1747370809286,60.4,171.54,171.51,38.04]
[1747370809685,60.4,171.54,171.53,5.8284]
[1747370815498,60.66,171.57,171.56,5.8274]
[1747370815694,60.66,171.6,171.51,38.04]
[1747370816090,6.90480847,171.64,171.51,38.04]
[1747370816288,120.56,171.63,171.51,38.04]
[1747370816501,60.28,171.63,171.51,44.94480847]
[1747370816689,60.26,171.62,171.51,44.94480847]
[1747370816892,237.53113322,171.64,171.51,44.94480847]
[1747370817093,60.26,171.63,171.62,5.8252]
[1747370817294,60.26,171.63,171.55,60.28]
[1747370817802,60.26,171.63,171.56,3.807]
[1747370818202,60.26,171.63,171.58,5.8267]
[1747370819596,5.8256,171.62,171.58,5.8267]
[1747370820103,237.53113322,171.64,171.57,67.16480847]
[1747370820502,243.35583322,171.64,171.56,3.807]
[1747370820701,237.53113322,171.64,171.56,3.807]
[1747370821204,237.53113322,171.64,171.6,5.8258]
[1747370821703,237.53113322,171.64,171.59,5.8263]
[1747370821893,237.53113322,171.64,171.56,3.807]
[1747370822304,237.53113322,171.64,171.57,5.8269]
[1747370822504,237.53113322,171.64,171.56,3.807]
[1747370822805,237.53113322,171.64,171.57,5.8268]
[1747370823507,5.8258,171.61,171.57,5.8268]
[1747370823705,60.18,171.6,171.56,3.807]
[1747370824308,237.53113322,171.64,171.6,5.8259]
[1747370824501,60.16,171.63,171.56,3.807]
[1747370824805,60.16,171.63,171.6,5.8258]
[1747370825910,243.35593322,171.64,171.6,5.8258]
[1747370826108,60.14,171.63,171.6,5.8258]
[1747370826709,60.14,171.63,171.56,3.807]
[1747370827709,5.8257,171.61,171.57,5.827]
[1747370828706,60.14,171.63,171.56,3.807]
[1747370829011,60.26,171.62,171.56,3.807]
[1747370829609,5.8267,171.59,171.56,3.807]
[1747370829811,65.9467,171.59,171.56,3.807]
[1747370830807,5.8267,171.58,171.54,66.0881]
[1747370831009,60.12,171.59,171.51,102.1761]
[1747370831213,60.26,171.58,171.51,102.1761]
[1747370831406,5.8277,171.56,171.52,5.8285]
[1747370831613,60.1,171.55,171.52,5.8285]
[1747370832814,60.1,171.55,171.51,41.9161]
[1747370833217,6.90480847,171.62,171.51,41.9161]
[1747370833423,60.26,171.6,171.52,60.26]
[1747370833807,60.26,171.6,171.57,5.8268]
[1747370834514,66.0861,171.6,171.56,5.8273]
[1747370834812,6.90480847,171.65,171.52,60.26]
[1747370835012,120.32,171.63,171.52,60.26]
[1747370835415,6.90480847,171.62,171.51,41.9161]
[1747370835614,6.90480847,171.62,171.51,3.8761]
[1747370836114,6.90480847,171.62,171.53,5.8284]
[1747370836314,6.90480847,171.62,171.51,3.8761]
[1747370837008,5.828,171.55,171.51,3.8761]
[1747370837211,60.04,171.54,171.51,3.8761]
[1747370838413,60.04,171.54,171.52,5.8287]
[1747370838612,60.04,171.54,171.51,44.6861]
[1747370839208,60.04,171.54,171.51,50.5151]
[1747370840519,60.04,171.54,171.52,5.8287]
[1747370841019,5.8278,171.55,171.51,44.6861]
[1747370841210,65.8478,171.55,171.51,44.6861]
[1747370841916,60.02,171.55,171.51,40.81]
[1747370842617,5.8288,171.52,171.51,40.81]
[1747370844913,66.0888,171.52,171.51,40.81]
[1747370847618,66.0888,171.52,171.41,6.90480847]
[1747370847619,60.26,171.52,171.38,6.90480847]
[1747370847819,60.26,171.52,171.37,63.7538]
[1747370847820,6.90480847,171.5,171.37,63.7538]
[1747370848921,6.90480847,171.5,171.37,3.7338]
[1747370849225,0.9226,171.49,171.38,5.8333]
[1747370849418,60.02,171.48,171.38,5.8333]
[1747370849618,60.02,171.47,171.38,5.8333]
[1747370850215,5.8319,171.43,171.38,5.8333]
[1747370850521,60.04,171.42,171.35,1.8677]
[1747370850712,60.04,171.42,171.32,2.0068]
[1747370850917,5.8329,171.4,171.32,2.0068]
[1747370851114,5.8329,171.4,171.32,3.0568]
[1747370851520,60.04,171.42,171.32,3.0568]
[1747370851917,60.04,171.41,171.34,6.90480847]
[1747370852124,60.04,171.41,171.35,1.9776]
[1747370852324,60.04,171.41,171.4,5.8328]
[1747370853127,237.79338065,171.44,171.41,5.8324]
[1747370853425,60.04,171.43,171.37,6.90480847]
[1747370853628,237.79338065,171.44,171.43,5.8318]
[1747370853828,60.04,171.46,171.39,60.04]
[1747370854020,60.04,171.46,171.4,1.9477]
[1747370854826,60.04,171.46,171.43,5.8317]
[1747370855027,60.04,171.46,171.4,1.9477]
[1747370855929,60.04,171.46,171.44,5.8314]
[1747370856723,60.04,171.46,171.4,1.9477]
[1747370858428,5.8312,171.45,171.41,5.8324]
[1747370858730,60.04,171.46,171.4,1.9477]
[1747370858927,60.04,171.46,171.36,61.8831]
[1747370859124,60.04,171.46,171.36,63.8735]
[1747370859325,5.8322,171.43,171.38,5.8333]
[1747370859527,60.04,171.42,171.38,5.8333]
[1747370859725,65.8723,171.42,171.38,5.8333]
[1747370860033,60.04,171.42,171.37,5.8338]
[1747370860732,60.04,171.42,171.36,67.8645]
[1747370861129,60.04,171.42,171.36,7.8245]
[1747370861634,5.8329,171.4,171.36,7.8245]
[1747370862331,60.04,171.42,171.36,7.8245]
[1747370862332,60.04,171.42,171.37,5.8339]
[1747370863032,65.8724,171.42,171.37,5.8339]
[1747370863232,237.75126048,171.47,171.36,1.9904]
[1747370863529,120.1,171.46,171.37,6.90480847]
[1747370863834,5.8312,171.45,171.37,66.94480847]
[1747370864332,5.8312,171.45,171.4,5.8326]
[1747370864536,65.8709,171.46,171.37,66.94480847]
[1747370864734,60.04,171.45,171.37,66.94480847]
[1747370865437,60.04,171.45,171.41,5.8323]
[1747370865937,60.04,171.45,171.4,5.8328]
[1747370866234,60.04,171.45,171.37,66.94480847]
[1747370866733,60.04,171.46,171.37,66.94480847]
[1747370866929,120.24,171.46,171.37,66.94480847]
[1747370867237,126.0709,171.46,171.41,5.8324]
[1747370867926,126.0709,171.46,171.42,5.832]
[1747370869337,120.24,171.46,171.4,5.8325]
[1747370870330,5.8312,171.45,171.4,5.8325]
[1747370871336,120.24,171.46,171.38,5.8334]
[1747370871736,5.8321,171.43,171.38,5.8334]
[1747370871938,60.06,171.42,171.38,5.8334]
[1747370872437,60.06,171.42,171.36,1.9904]
[1747370872637,60.06,171.42,171.37,6.90480847]
[1747370873541,60.06,171.42,171.41,5.8325]
[1747370873743,65.8912,171.45,171.41,5.8325]
[1747370874644,5.8315,171.44,171.4,5.8327]
[1747370874838,60.06,171.45,171.38,60.04]
[1747370876241,5.8322,171.42,171.38,5.8334]
[1747370876547,60.12,171.41,171.36,1.9904]
[1747370876743,60.14,171.41,171.37,5.8336]
[1747370877351,65.9728,171.41,171.37,5.8336]
[1747370878844,60.14,171.41,171.38,5.8333]
[1747370879048,60.14,171.41,171.36,1.9904]
[1747370879547,60.14,171.41,171.39,5.8331]
[1747370879747,60.06,171.42,171.39,5.8331]
[1747370880149,65.8922,171.42,171.38,5.8335]
[1747370880342,60.06,171.42,171.36,1.9904]
[1747370881648,5.8325,171.41,171.37,5.8336]
[1747370881849,5.8325,171.41,171.36,1.9904]
[1747370882053,29.162,171.61,171.4,6.90480847]
[1747370882242,127.64,171.51,171.41,1.8194]
[1747370882442,127.64,171.51,171.43,6.90480847]
[1747370882742,133.4692,171.51,171.45,5.8308]
[1747370882942,127.64,171.51,171.45,5.8308]
[1747370883350,133.4691,171.51,171.45,5.8308]
[1747370883747,127.64,171.51,171.46,5.8307]
[1747370884251,63.8,171.51,171.46,5.8307]
[1747370884449,127.9,171.51,171.46,5.8307]
[1747370885052,127.9,171.51,171.43,65.754]
[1747370886051,5.8297,171.5,171.43,65.754]
[1747370886256,127.9,171.51,171.43,65.754]
[1747370887659,5.8301,171.48,171.43,71.5858]
[1747370888458,127.9,171.51,171.43,65.754]
[1747370888654,63.8,171.51,171.43,72.65880847]
[1747370888958,63.8,171.51,171.47,5.8302]
[1747370889155,63.8,171.51,171.43,72.65880847]
[1747370889756,6.90480847,171.58,171.43,136.49880847]
[1747370890059,63.8,171.57,171.46,6.90480847]
[1747370890247,127.62,171.57,171.47,65.7983]
[1747370890652,5.8278,171.55,171.5,5.8294]
[1747370891153,5.8283,171.54,171.49,5.8297]
[1747370891349,127.62,171.57,171.47,65.7983]
[1747370892162,127.62,171.57,171.47,7.8285]
[1747370893762,5.8294,171.51,171.47,1.9983]
[1747370893963,69.4494,171.51,171.47,1.9983]
[1747370894164,63.62,171.51,171.43,72.65880847]
[1747370894362,63.62,171.51,171.43,65.754]
[1747370894559,63.62,171.51,171.43,63.8]
[1747370894756,5.8312,171.45,171.41,7.6779]
[1747370894957,63.68,171.47,171.41,7.6779]
[1747370895465,5.8309,171.46,171.41,7.6779]
[1747370895963,5.8309,171.46,171.41,5.8322]
[1747370896259,5.8312,171.45,171.41,5.8322]
[1747370897558,5.8309,171.46,171.41,5.8322]
[1747370897761,63.68,171.47,171.41,5.8322]
[1747370898364,63.68,171.47,171.42,5.832]
[1747370898864,69.5107,171.47,171.42,5.832]
[1747370899664,5.8309,171.46,171.42,5.832]
[1747370899866,63.68,171.47,171.41,5.8325]
[1747370900764,63.68,171.47,171.42,5.832]
[1747370901566,5.8309,171.46,171.42,5.832]
[1747370901768,5.8309,171.46,171.41,5.8324]
[1747370902064,63.68,171.47,171.41,5.8324]